Cogmind - Beta 12 X1 @@@ ROGUE MODE // 2022.07.21 @ 16:49:30 Player: btmk16 Result: Destroyed by as-87619 with Assembled Heavy Rifle Performance ------------- Evolutions (0) 0 Regions Visited (2) 400 Robots Destroyed (10) 50 Value Destroyed (199) 199 Prototype IDs (0) 0 Alien Tech Used (0) 0 Bonus (0) 0 TOTAL SCORE: 649 Bonus ------- None Cogmind --------- Core Integrity 0/250 Matter 188/300 Energy 100/100 System Corruption 7% Temperature Cool (0) Movement Rolling (200) Ox8 Location -10/Mines Parts ------- > --- POWER (1) -------- (None) > --- PROPULSION (2) --- Wheel > --- UTILITY (2) ------ Huge Storage Unit Machine Analyzer > --- WEAPON (2) ------- Light Assault Rifle > --- INVENTORY (25) --- Light Ion Engine Light Treads Light Treads Light Treads Aluminum Leg Aluminum Leg Wheel Improved Heat Sink Small Storage Unit Small Battery (100) Small Battery (100) Structural Scanner Structural Scanner Terrain Scanner Medium Armor Plating Medium Armor Plating Medium Armor Plating Medium Armor Plating Shield Generator Light Assault Rifle Light Cannon Grenade Launcher Grenade Launcher Peak State ------------ > --- POWER ------------ Ion Engine > --- PROPULSION ------- Wheel Wheel > --- UTILITY ---------- Huge Storage Unit Machine Analyzer > --- WEAPON ----------- Light Assault Rifle Light Assault Rifle > --- INVENTORY -------- Light Ion Engine Light Treads Light Treads Light Treads Aluminum Leg Aluminum Leg Wheel Improved Heat Sink Small Storage Unit Small Battery Small Battery Structural Scanner Structural Scanner Terrain Scanner Medium Armor Plating Medium Armor Plating Medium Armor Plating Medium Armor Plating Shield Generator Light Cannon Grenade Launcher Grenade Launcher Grenade Launcher [Rating: 12] Favorites ----------- Power Ion Engine Engine Ion Engine Propulsion Wheel Leg Aluminum Leg Wheel Wheel Utility Machine Analyzer Storage Huge Storage Unit Processor Machine Analyzer Weapon Light Assault Rifle Ballistic Gun Light Assault Rifle Launcher Grenade Launcher Build | -11 -10 -10 ------- Run | Scr Mat Min Slots Evolved . | . . . Power . | . . . Propulsion . | . . . Utility . | . . . Weapon . | . . . Parts Attached 10 | . 10 . Power 1 | . 1 . Engine 1 | . 1 . Core . | . . . Reactor . | . . . Propulsion 2 | . 2 . Treads . | . . . Leg . | . . . Wheel 2 | . 2 . Hover . | . . . Flight . | . . . Utility 2 | . 2 . Device . | . . . Storage 1 | . 1 . Processor 1 | . 1 . Hackware . | . . . Protection . | . . . Artifact . | . . . Weapon 5 | . 5 . Energy Gun . | . . . Energy Cannon . | . . . Ballistic Gun 4 | . 4 . Ballistic Cannon . | . . . Launcher 1 | . 1 . Special Weapon . | . . . Impact Weapon . | . . . Slashing Weapon . | . . . Piercing Weapon . | . . . Special Melee Weapon . | . . . Unidentified Prototypes . | . . . Parts Lost 4 | . 1 3 Power 1 | . . 1 Propulsion 1 | . . 1 Utility . | . . . Weapon 2 | . 1 1 Highest Loss Streak 3 | . 1 3 To Critical Strikes . | . . . Average Slot Usage (%) 98 | . 98 95 Engine 13 | . 14 12 Leg 6 | . 7 . Wheel 21 | . 20 26 Storage 14 | . 14 14 Processor 13 | . 12 14 Ballistic Gun 26 | . 27 14 Launcher 1 | . . 12 Naked Turns . | . . . Heaviest Build 89 | 13 89 89 Greatest Support 20 | 20 20 20 Greatest Overweight (x) 4 | . 4 4 Average Overweight (x) 3 | . 3 4 Largest Inventory Capacity 25 | . 25 25 Average Capacity 21 | . 20 25 Most Carried 23 | . 23 23 Average Carried 14 | . 13 23 Final Capacity 25 | 8 25 25 Final Carried 23 | 6 23 23 Class Distribution -------------------- 100% | Mutant Dominant Class ---------------- Mutant | -10/Materials Mutant | -10/Mines Resources | -11 -10 -10 ----------- Run | Scr Mat Min Matter Collected 411 | 200 211 . Remotely . | . . . Salvage Created 311 | . 297 14 Parts 20 | . 20 . Haulers Intercepted 2 | . 2 . Recyclers Shooed 1 | . 1 . Parts Field Recycled . | . . . Retrieved Matter . | . . . Parts Self-Destructed . | . . . Prevented . | . . . Kills | -11 -10 -10 ------- Run | Scr Mat Min Combat Hostiles Destroyed 15 | . 7 8 Guns 7 | . 7 . AOE 8 | . . 8 Classes Destroyed 5 | . 4 1 Hauler 2 | . 2 . Operator 1 | . 1 . Swarmer 3 | . 3 . Grunt 4 | . 4 . Assembled 8 | . . 8 Best Kill Streak 8 | . 4 8 Combat Bots Only 8 | . 2 8 Max Kills in Single Turn 3 | . 1 3 Gunslinging . | . . . Exploded 3 | . . 3 Melee . | . . . Uniques/NPCs Destroyed . | . . . Combat | -11 -10 -10 -------- Run | Scr Mat Min Damage Taken 654 | . 404 250 Core 257 | . 158 99 Absorbed by Shields . | . . . Core Remaining (%) 100 | 100 . . Volleys Fired 54 | . 48 6 Largest 2 | . 2 1 Hottest 40 | . 40 30 Shots Fired 101 | . 95 6 Gun 96 | . 95 1 Cannon . | . . . Launcher 5 | . . 5 Special . | . . . Kinetic 96 | . 95 1 Thermal . | . . . Explosive 5 | . . 5 Electromagnetic . | . . . Robot Hit Streak 9 | . 9 1 Robot Miss Streak 5 | . 5 4 Penetration Max . | . . . Secondary Targets 2 | . 2 . Max Gunslinging Chain 1 | . 1 . Shots Hit Robots 62 | . 61 1 Core Hits 39 | . 22 17 Critical Kills . | . . . Critical Parts Destroyed . | . . . Critical Strikes . | . . . Melee Attacks . | . . . Impact . | . . . Slashing . | . . . Piercing . | . . . Sneak Attacks . | . . . Combat Hostiles . | . . . Follow-up Attacks . | . . . Damage Inflicted 1053 | . 624 429 Guns 624 | . 624 . Cannons . | . . . Explosions 429 | . . 429 Melee . | . . . Ramming . | . . . Kinetic 624 | . 624 . Thermal . | . . . Explosive 429 | . . 429 Electromagnetic . | . . . Impact . | . . . Slashing . | . . . Piercing . | . . . Highest Corruption 7 | . 4 7 Average Corruption 3 | . 3 4 Corruption Purged . | . . . Corruption Blocked . | . . . Effects 16 | . 15 1 Message Errors 3 | . 3 . Matter Fused 4 | . 4 . Heat Flow Errors 2 | . 2 . Energy Discharges 1 | . 1 . Data Loss (minor) 5 | . 5 . Data Loss (major) 1 | . . 1 Overload Shots . | . . . Overflow Damage 36 | . . 36 Projectiles . | . . . Explosions 36 | . . 36 Melee . | . . . Knockbacks . | . . . Impact . | . . . Kinetic . | . . . Secondary . | . . . Self-Inflicted Damage 40 | . . 40 Shots 1 | . . 1 Rammed . | . . . Targets Rammed . | . . . Kicked . | . . . Crushed . | . . . Highest Temperature 231 | . 231 30 Average Temperature 74 | . 78 20 Received Heat Transfer 252 | . 192 60 Siege Activations . | . . . Robots Corrupted . | . . . Combat Hostiles . | . . . Parts Fried . | . . . Impact Corruptions . | . . . Robots Melted . | . . . Combat Hostiles . | . . . Parts Melted . | . . . Heat Transferred . | . . . Parts Sabotaged . | . . . Parts Stolen . | . . . Parts Stripped . | . . . Power Chain Reactions . | . . . Missiles Intercepted . | . . . Alert | -11 -10 -10 ------- Run | Scr Mat Min Peak Influence 217 | . 217 28 Initial 28 | . . 28 Average 79 | . 86 27 Maximum Alert Level 1 | . 1 . Low Security (%) 87 | . 85 100 Level 1 12 | . 14 . Level 2 . | . . . Level 3 . | . . . Level 4 . | . . . Level 5 . | . . . High Security . | . . . Max Security . | . . . Squads Dispatched 2 | . 2 . Investigation 1 | . 1 . Extermination . | . . . Reinforcement 1 | . 1 . Assault . | . . . Garrison . | . . . Intercept . | . . . Searches Triggered . | . . . Construction Impeded . | . . . Haulers Reinforced . | . . . Active Scanning Responses . | . . . Cargo Convoy Interrupts . | . . . Stealth | -11 -10 -10 --------- Run | Scr Mat Min Distress Signals . | . . . Communications Jammed . | . . . Distress Signals . | . . . Times Spotted 27 | . 18 9 Peak Tracking Total 13 | . 4 13 Tactical Retreats 1 | . 1 . Traps | -11 -10 -10 ------- Run | Scr Mat Min Traps Triggered 5 | . 5 . Indirectly . | . . . Trap Hack Attempts . | . . . Triggered . | . . . Disarmed . | . . . Reprogrammed . | . . . Reused . | . . . Traps Extracted . | . . . Installed . | . . . Triggered . | . . . Machines | -11 -10 -10 ---------- Run | Scr Mat Min Machines Disabled . | . . . Max in Single Turn . | . . . Machines Sabotaged . | . . . Garrisons Compromised . | . . . Overloaded Fab Kills . | . . . Hacking | -11 -10 -10 --------- Run | Scr Mat Min Machines Accessed 4 | . 4 . Terminals 4 | . 4 . Fabricators . | . . . Repair Stations . | . . . Recycling Units . | . . . Scanalyzers . | . . . Garrison Access . | . . . Total Hacks 6 | . 6 . Successful 4 | . 4 . Failed 1 | . 1 . Catastrophic . | . . . Database Lockouts 1 | . 1 . Manual 2 | . 2 . Terminals 6 | . 6 . Fabricators . | . . . Repair Stations . | . . . Recycling Units . | . . . Scanalyzers . | . . . Garrison Access . | . . . Terminal Hacks 4 | . 4 . Robot Analysis 2 | . 2 . Hauler Manifests 1 | . 1 . Zone Layout 1 | . 1 . Fabricator Hacks . | . . . Repair Station Hacks . | . . . Recycling Unit Hacks . | . . . Scanalyzer . | . . . Garrison Access Hacks . | . . . Unauthorized Hacks . | . . . Terminals . | . . . Fabricators . | . . . Repair Stations . | . . . Recycling Units . | . . . Scanalyzers . | . . . Garrison Access . | . . . Data Cores Recovered . | . . . Used . | . . . Hacking Detections 2 | . 2 . Full Trace Events . | . . . Feedback Events . | . . . Feedback Blocked . | . . . Robot Schematics Acquired . | . . . Robots Built . | . . . Authchips . | . . . Time . | . . . Total Robot Build Rating . | . . . Part Schematics Acquired . | . . . Parts Built . | . . . Authchips . | . . . Time . | . . . Total Part Build Rating . | . . . Parts Repaired . | . . . Time . | . . . Parts Recycled . | . . . Recycled Matter . | . . . Retrieved Matter . | . . . Retrieved Components . | . . . Parts Scanalyzed . | . . . Part Schematics Acquired . | . . . Parts Damaged . | . . . Bothacking | -11 -10 -10 ------------ Run | Scr Mat Min Used RIF Installer . | . . . Robots Hacked . | . . . Non-combat . | . . . Combat . | . . . Robot Hacks Applied . | . . . Relay Couplers Released . | . . . Fabnet Peak Effective % . | . . . Robots Rewired . | . . . Allies Hacked . | . . . Hacks Repelled . | . . . Allies | -11 -10 -10 -------- Run | Scr Mat Min Total Allies . | . . . Largest Group . | . . . Highest-Rated Group . | . . . Highest-Rated Ally . | . . . Total Orders . | . . . Ally Attacks . | . . . Total Damage . | . . . Kills . | . . . Allies Corrupted . | . . . Allies Melted . | . . . Intel | -11 -10 -10 ------- Run | Scr Mat Min Robot Analysis Total 2 | . 2 . Derelict Logs Recovered . | . . . Drone Launches . | . . . Drone Recoveries . | . . . Exploration | -11 -10 -10 ------------- Run | Scr Mat Min Turns Passed 850 | . 754 96 Spaces Moved 476 | 1 415 60 Core . | . . . Treads . | . . . Legs 66 | 1 65 . Wheels 410 | . 350 60 Hover . | . . . Flight . | . . . Fastest Speed 120 | 120 120 140 Average Speed 137 | 120 136 140 Slowest Speed 140 | 120 140 140 Overloaded Moves . | . . . Propulsion Burnouts . | . . . Robots Hopped . | . . . Cave-ins Triggered . | . . . Exploration Rate (%) 34 | 2 70 31 Regions Visited 2 Branch Regions 1 Pre-discovered Areas . | . . . Known Exits Taken . | . . . Unknown Exits Taken 2 | 1 1 . Scrap Searched . | . . . Spaces Dug . | . . . Terrain Destroyed 3 | . . 3 Melee . | . . . Projectile . | . . . AOE 3 | . . 3 Terrain Rammed . | . . . Walls Destroyed . | . . . Machines Disabled . | . . . Actions | -11 -10 -10 --------- Run | Scr Mat Min Total 579 | . 513 66 Wait 24 | . 24 . Move 474 | . 414 60 Hop . | . . . Pick Up 17 | . 17 . Fast Attach 5 | . 5 . Attach 1 | . 1 . Detach . | . . . Swap 4 | . 4 . Drop . | . . . Fire 54 | . 48 6 Melee . | . . . Ram . | . . . Kick . | . . . Crush . | . . . Escape Stasis . | . . . Rewire . | . . . Trap . | . . . Miscellaneous . | . . . Route ------- -11/Scrapyard -10/Materials (discovered 4 exits: [*Mat x3] / [*Min]) -10/Mines History --------- Turn | Location | Event 1 | -11/Scrapyard | Discovered new exit (range 0) 1 | -11/Scrapyard | Entered Materials 105 | -10/Materials | Core integrity fell below 50% 203 | -10/Materials | Discovered new exit (range 10) 302 | -10/Materials | Build established: Mutant 444 | -10/Materials | Central database locked down 596 | -10/Materials | Discovered new exit (range 9) 633 | -10/Materials | Discovered new exit (range 16) 700 | -10/Materials | Discovered new exit (range 4) 755 | -10/Materials | Entered Mines 833 | -10/Mines | Assembled infested the area 848 | -10/Mines | Core integrity fell below 20% 851 | -10/Mines | Destroyed by as-87619 with Assembled Heavy Rifle Last Messages --------------- 00716_ System corrupted: Energy discharge (-82). LOCATION=UNKNOWN GOAL=ESCAPE 00833_ ALERT: Infestation in the mines, dispatching Demolisher response squad. 00839_ as-55521 destroyed. 00841_ as-82235 destroyed. 00841_ as-63694 destroyed. 00841_ as-48652 destroyed. 00844_ System corrupted: Substantial component data lost. 00845_ as-82991 destroyed. 00846_ Wheel destroyed. 00847_ Ion Engine destroyed. 00847_ System corrupted by crushing effect (+3). 00847_ as-16609 destroyed. 00847_ Grenade Launcher destroyed. 00847_ Destroyed Grenade Launcher. 00847_ as-33507 destroyed. 00847_ Destroyed Asb. Hover Unit. 00847_ as-68380 destroyed. Map ----- +----------------------------------------------------+ | ????????????????????????????????????????????? | | ????????????????????????????????????????????? | | ????????????????????????????????????????????? | | ????????????????????????????????????????????? | | ????????????????????????????????????????????? | | ????????????????????????????????????????????? | | ????????????????????????????????????????????? | | ????????????????????????????????????????????? | | ??????????????# ?????????????????????????? | | ???????????? ???????????????????????? | | ????????? ??????????????????????? | | ??????? ??????????????????????? | | ???????? ???????????????????????? | | ????????# ???????????????????????? | | ???????## #???????????????????????? | | ???????# ##??????????????????????? | | ??????## % #??????????????????????? | | ??????# #??????????????????????? | | ??????# ##??####???????????????? | | ??????# #?## ##??????????????? | | ???????# #?# ##?????????????? | | ???????? ##?# ####??????????? | | ?????????? a ### ##?????????# | | ???????????????# ## ########### | | ???????????????# | | ????????????????# @ | | ????????????????# t ###### | | ????????????????# ###????# | | ????????????????## ##### ###??????# # | | ?????????????????#######???####????????# # | | ???????????????????????????????????????## ## | | ????????????????????????????????????????####? | | ????????????????????????????????????????????? | | | | | | | | | | | | | | | | | | | | | | | | | | | | | | | | | | | +----------------------------------------------------+ Best States ------------- Heat Dissipation 25 Energy Generation 10 Energy Capacity 250 Matter Stores 300 Matter Capacity 300 Sight Range 16 Terrain Scan Density 10 Evasion (%) 55 Item Schematics ----------------- None Robot Schematics ------------------ None Fabricated ------------ Nothing Alien Tech Used ----------------- None Achievements -------------- None Challenges ------------ None Game ------ Seed SegregatorRocketMount Manual? 0 Play Time 00:05:57 Cumulative 423.1 hours Start 2022.07.21 @ 16:42:26 End 2022.07.21 @ 16:49:30 Sessions 1 Manual Loads 0 Difficulty Rogue Special Mode None Game No. 482 Rogue 481 Adventurer 0 Explorer 1 Win Type - Total 11 Types 7/0/2/2/0/0/0/0/0 Lore% 77 Gallery% 88 Achievement% 66 Wizard Run 0 Options --------- ASCII 0 Keyboard 1 Movement Vi Keybinds 0 Fullscreen 1 Font 18/SmallcapsGlow Map View 76x50 Tactical HUD 1 Map Filters NONE Filters NONE Steam 1 RUN: f26ccc59-ccb7-4e7a-98e5-ec935bfbe4ec